[Event "Summer Prague Open-A 2024"]
[Site "Prague"]
[Date "2024.08.06"]
[Round "6.22"]
[White "Thomas, Tobias"]
[Black "Patil Harshal"]
[Result "0-1"]
[Annotator "NA RC"]
[ECO "A14"]
[WhiteElo "1966"]
[BlackElo "2130"]
[PlyCount "76"]
[EventDate "2024.08.02"]
[EventType "swiss"]
[EventCountry "CZE"]
[SourceTitle "playchess.com"]
[Source "ChessBase"]
[SourceQuality "1"]
[TimeControl "40/5400+30:1800+30"]

1. c4 {[%emt 0:00:03]} Nf6 {[%emt 0:01:14]} 2. g3 {[%emt 0:00:07]} e6 {[%emt 0:04:18]} 3. Bg2 {[%emt 0:00:10]} d5 {[%emt 0:00:05]} 4. Nf3 {[%emt 0:00:08]} Be7 {[%emt 0:03:42]} 5. O-O {[%emt 0:00:10]} O-O {[%emt 0:00:05]} 6. b3 {[%emt 0:00:05]} d4 {[%emt 0:02:12]} 7. e3 {[%emt 0:00:33]} d3 {[%emt 0:12:01]} 8. Bb2 {[%emt 0:05:07]} c5 {[%emt 0:01:43]} 9. Ne1 {[%emt 0:06:53]} Nc6 {[%emt 0:01:32]} 10. f4 {[%emt 0:05:22]} a6 {[%emt 0:15:57]} 11. e4 {[%emt 0:26:24]} e5 {[%emt 0:02:52]} 12. f5 {[%emt 0:00:30]} b5 {[%emt 0:01:34]} 13. Qf3 {[%emt 0:08:23]} Qb6 {[%emt 0:23:51]} 14. Nxd3 {[%emt 0:02:59]} bxc4 {[%emt 0:02:44]} 15. bxc4 {[%emt 0:04:38]} Bb7 {[%emt 0:00:38]} 16. Nc3 {[%emt 0:01:58]} Na5 {[%emt 0:03:08]} 17. Rab1 {[%emt 0:07:45]} Nxc4 {[%emt 0:00:34]} 18. Qe2 {[%emt 0:00:40]} Rfd8 {[%emt 0:03:06]} 19. Bc1 {[%emt 0:04:56]} Qc7 {[%emt 0:00:56]} 20. Nf2 {[%emt 0:05:09]} Nd6 {[%emt 0:04:17]} 21. g4 {[%emt 0:02:16]} h6 {[%emt 0:01:19]} 22. Kh1 {[%emt 0:03:27]} Nb5 {[%emt 0:01:28]} 23. Nxb5 {[%emt 0:00:58]} axb5 {[%emt 0:00:01]} 24. Rg1 {[%emt 0:00:09]} b4 {[%emt 0:01:47]} 25. h4 {[%emt 0:00:56]} Nh7 {[%emt 0:00:55]} 26. g5 {[%emt 0:03:09]} hxg5 27. d3 Rd6 {[%emt 0:03:16]} 28. Nh3 {[%emt 0:02:18]} Rh6 {[%emt 0:01:30]} 29. hxg5 {[%emt 0:00:46]} Bxg5 {[%emt 0:00:02]} 30. Bf1 {[%emt 0:00:18]} f6 {[%emt 0:01:27]} 31. Kg2 {[%emt 0:01:18]} Qf7 {[%emt 0:02:11]} 32. Bxg5 {[%emt 0:01:06]} fxg5 {[%emt 0:00:03]} 33. Rb2 {[%emt 0:00:28]} Qxf5 {[%emt 0:00:02]} 34. Kg3 {[%emt 0:01:38]} Qd7 {[%emt 0:01:51]} 35. Qc2 {[%emt 0:00:50]} Ra3 {[%emt 0:00:50]} 36. Qxc5 {[%emt 0:01:07]} Rxd3+ {[%emt 0:00:52]} 37. Kf2 {[%emt 0:01:09]} Rf6+ {[%emt 0:00:34]} 38. Ke2 {[%emt 0:00:31]} Ba6 {[%emt 0:00:25]} 0-1

[Event "Summer Prague Open-A 2024"]
[Site "Prague"]
[Date "2024.08.06"]
[Round "6.23"]
[White "Soural, Jan"]
[Black "Bohatyrov, Mykola"]
[Result "1/2-1/2"]
[Annotator "NA RC"]
[ECO "A11"]
[WhiteElo "2130"]
[BlackElo "1847"]
[PlyCount "44"]
[EventDate "2024.08.02"]
[EventType "swiss"]
[EventCountry "CZE"]
[SourceTitle "playchess.com"]
[Source "ChessBase"]
[SourceQuality "1"]
[TimeControl "40/5400+30:1800+30"]

1. c4 {[%emt 0:00:02]} c6 {[%emt 0:00:15]} 2. Nf3 {[%emt 0:06:25]} Nf6 {[%emt 0:00:15]} 3. e3 {[%emt 0:01:37]} d5 {[%emt 0:00:09]} 4. Nc3 {[%emt 0:00:42]} g6 {[%emt 0:03:18]} 5. d4 {[%emt 0:00:46]} Bg7 {[%emt 0:00:25]} 6. Be2 {[%emt 0:01:42]} O-O {[%emt 0:00:18]} 7. O-O {[%emt 0:00:29]} Ne4 {[%emt 0:14:28]} 8. Qb3 {[%emt 0:05:26]} e6 {[%emt 0:02:07]} 9. Nxe4 {[%emt 0:11:25]} dxe4 {[%emt 0:00:07]} 10. Nd2 {[%emt 0:00:03]} f5 {[%emt 0:00:46]} 11. c5 {[%emt 0:00:15]} Kh8 {[%emt 0:02:51]} 12. Nc4 {[%emt 0:00:16]} Qe7 {[%emt 0:04:28]} 13. Nd6 {[%emt 0:08:50]} e5 {[%emt 0:04:00]} 14. dxe5 {[%emt 0:03:13]} Nd7 {[%emt 0:01:53]} 15. Bd2 {[%emt 0:22:11]} Nxc5 {[%emt 0:01:47]} 16. Qa3 {[%emt 0:09:22]} Ne6 {[%emt 0:14:15]} 17. Bb4 {[%emt 0:08:09]} c5 {[%emt 0:00:33]} 18. Bxc5 {[%emt 0:00:18]} Nxc5 {[%emt 0:00:03]} 19. Qxc5 {[%emt 0:00:16]} Qxe5 {[%emt 0:02:04]} 20. Rac1 {[%emt 0:02:28]} Be6 {[%emt 0:02:37]} 21. Qxe5 {[%emt 0:03:13]} Bxe5 {[%emt 0:00:14]} 22. Bc4 {[%emt 0:00:05]} Bxd6 {[%emt 0:02:02]} 1/2-1/2

[Event "Summer Prague Open-A 2024"]
[Site "Prague"]
[Date "2024.08.06"]
[Round "6.24"]
[White "Zhakan, Erasyl"]
[Black "Lihotsky, Lukas"]
[Result "1/2-1/2"]
[Annotator "NA RC"]
[ECO "B12"]
[WhiteElo "1962"]
[BlackElo "2104"]
[PlyCount "95"]
[EventDate "2024.08.02"]
[EventType "swiss"]
[EventCountry "CZE"]
[SourceTitle "playchess.com"]
[Source "ChessBase"]
[SourceQuality "1"]
[TimeControl "40/5400+30:1800+30"]

1. e4 {[%emt 0:04:55]} c6 {[%emt 0:00:15]} 2. d4 {[%emt 0:00:02]} d5 {[%emt 0:00:15]} 3. e5 {[%emt 0:00:31]} Bf5 {[%emt 0:00:09]} 4. h4 {[%emt 0:00:08]} h5 {[%emt 0:00:12]} 5. Bd3 {[%emt 0:00:05]} Bxd3 {[%emt 0:00:16]} 6. Qxd3 {[%emt 0:00:01]} Qa5+ {[%emt 0:00:53]} 7. b4 {[%emt 0:00:04]} Qa6 {[%emt 0:02:23]} 8. Qb3 {[%emt 0:00:10]} e6 {[%emt 0:07:07]} 9. a4 {[%emt 0:00:17]} Qb6 {[%emt 0:13:15]} 10. c3 {[%emt 0:00:10]} a5 {[%emt 0:00:36]} 11. b5 {[%emt 0:07:02]} Nd7 {[%emt 0:09:08]} 12. Nf3 {[%emt 0:06:05]} Ne7 {[%emt 0:02:24]} 13. Ba3 {[%emt 0:09:12]} c5 {[%emt 0:06:20]} 14. Nbd2 {[%emt 0:02:03]} c4 {[%emt 0:14:49]} 15. Qd1 {[%emt 0:01:49]} f6 {[%emt 0:06:40]} 16. Qe2 {[%emt 0:03:51]} Nf5 {[%emt 0:03:45]} 17. Bxf8 {[%emt 0:02:46]} Rxf8 {[%emt 0:00:21]} 18. O-O {[%emt 0:27:05]} O-O-O {[%emt 0:01:30]} 19. Rfe1 {[%emt 0:00:54]} Rde8 {[%emt 0:00:49]} 20. Nf1 {[%emt 0:02:40]} fxe5 {[%emt 0:11:24]} 21. Nxe5 {[%emt 0:00:25]} Nxe5 {[%emt 0:00:37]} 22. Qxe5 {[%emt 0:00:24]} Nxh4 {[%emt 0:01:49]} 23. Qxh5 {[%emt 0:08:44]} Qd8 {[%emt 0:06:11]} 24. b6 {[%emt 0:03:27]} Nf5 {[%emt 0:01:41]} 25. Qg4 {[%emt 0:03:12]} Rh8 {[%emt 0:00:57]} 26. g3 {[%emt 0:03:27]} Rh6 {[%emt 0:01:44]} 27. Rab1 {[%emt 0:04:46]} Reh8 {[%emt 0:03:16]} 28. Re5 {[%emt 0:01:54]} Qf6 {[%emt 0:01:22]} 29. Rxf5 {[%emt 0:07:57]} Qxf5 {[%emt 0:00:51]} 30. Qxf5 {[%emt 0:00:08]} exf5 {[%emt 0:00:09]} 31. Rb5 {[%emt 0:00:09]} f4 {[%emt 0:02:02]} 32. Kg2 {[%emt 0:01:06]} Rf6 {[%emt 0:00:29]} 33. gxf4 {[%emt 0:00:20]} Rhf8 {[%emt 0:00:50]} 34. f3 {[%emt 0:01:06]} Rxf4 {[%emt 0:00:17]} 35. Nh2 {[%emt 0:00:22]} R4f5 {[%emt 0:00:55]} 36. Rxa5 R8f6 {[%emt 0:01:17]} 37. Rb5 {[%emt 0:01:00]} Re6 {[%emt 0:01:12]} 38. Ng4 {[%emt 0:00:27]} Re2+ {[%emt 0:00:05]} 39. Kg3 {[%emt 0:00:02]} Kd7 {[%emt 0:01:00]} 40. Rc5 {[%emt 0:00:40]} Kd6 {[%emt 0:00:29]} 41. Rc8 {[%emt 0:09:00]} Rb2 {[%emt 0:18:46]} 42. a5 {[%emt 0:00:19]} Ra2 {[%emt 0:00:50]} 43. Ne5 {[%emt 0:04:52]} Rxa5 {[%emt 0:02:24]} 44. Rd8+ {[%emt 0:02:55]} Ke6 {[%emt 0:00:13]} 45. Re8+ {[%emt 0:00:02]} Kd6 {[%emt 0:00:18]} 46. Rd8+ {[%emt 0:00:14]} Ke6 {[%emt 0:00:28]} 47. Re8+ {[%emt 0:01:27]} Kd6 {[%emt 0:00:15]} 48. Rd8+ {[%emt 0:00:37]} 1/2-1/2

[Event "Summer Prague Open-A 2024"]
[Site "Prague"]
[Date "2024.08.06"]
[Round "6.25"]
[White "Schmitz, Thorsten"]
[Black "Stefanisin, Jan"]
[Result "1-0"]
[Annotator "NA RC"]
[ECO "A05"]
[WhiteElo "2218"]
[BlackElo "1996"]
[PlyCount "73"]
[EventDate "2024.08.02"]
[EventType "swiss"]
[EventCountry "CZE"]
[SourceTitle "playchess.com"]
[Source "ChessBase"]
[SourceQuality "1"]
[TimeControl "40/5400+30:1800+30"]

1. Nf3 {[%emt 0:00:03]} Nf6 {[%emt 0:00:47]} 2. g3 {[%emt 0:00:18]} b6 {[%emt 0:01:19]} 3. Bg2 {[%emt 0:00:07]} Bb7 {[%emt 0:00:04]} 4. O-O {[%emt 0:00:07]} e6 {[%emt 0:01:02]} 5. c4 {[%emt 0:01:06]} d6 {[%emt 0:00:50]} 6. d4 {[%emt 0:01:02]} Nbd7 {[%emt 0:00:42]} 7. Nc3 {[%emt 0:00:57]} Be7 {[%emt 0:01:30]} 8. d5 {[%emt 0:05:16]} O-O {[%emt 0:04:29]} 9. dxe6 {[%emt 0:02:02]} fxe6 {[%emt 0:03:30]} 10. Nd4 {[%emt 0:00:30]} Bxg2 {[%emt 0:00:27]} 11. Nxe6 {[%emt 0:00:38]} Qc8 {[%emt 0:00:23]} 12. Kxg2 {[%emt 0:02:44]} Re8 {[%emt 0:01:52]} 13. Nd5 {[%emt 0:09:02]} Bd8 {[%emt 0:01:14]} 14. Nxd8 {[%emt 0:06:51]} Qxd8 {[%emt 0:01:38]} 15. Be3 {[%emt 0:01:00]} Nxd5 {[%emt 0:10:48]} 16. Qxd5+ {[%emt 0:05:57]} Kh8 {[%emt 0:02:32]} 17. Rae1 {[%emt 0:00:43]} Re5 {[%emt 0:02:52]} 18. Qd2 {[%emt 0:04:50]} Nf6 {[%emt 0:01:27]} 19. f3 {[%emt 0:04:38]} Qd7 {[%emt 0:03:21]} 20. Bf4 {[%emt 0:02:51]} Re6 {[%emt 0:01:26]} 21. e4 {[%emt 0:01:42]} Qc6 {[%emt 0:00:10]} 22. b3 {[%emt 0:02:17]} a5 {[%emt 0:01:03]} 23. Bg5 {[%emt 0:03:52]} Rae8 {[%emt 0:01:22]} 24. Kg1 {[%emt 0:09:35]} a4 {[%emt 0:02:03]} 25. Qd4 {[%emt 0:09:16]} Nd7 {[%emt 0:02:53]} 26. Bd2 {[%emt 0:06:30]} Re5 {[%emt 0:03:36]} 27. Bc3 {[%emt 0:01:08]} Nf6 {[%emt 0:00:05]} 28. Qd3 {[%emt 0:01:30]} R5e6 {[%emt 0:01:17]} 29. Bd4 {[%emt 0:03:40]} Nh5 {[%emt 0:01:44]} 30. Re2 {[%emt 0:04:31]} Rg6 {[%emt 0:00:29]} 31. Rg2 {[%emt 0:00:14]} Qd7 {[%emt 0:00:25]} 32. f4 {[%emt 0:03:14]} Qh3 {[%emt 0:01:31]} 33. e5 {[%emt 0:01:22]} c5 {[%emt 0:02:05]} 34. Bc3 {[%emt 0:01:04]} dxe5 {[%emt 0:02:06]} 35. fxe5 {[%emt 0:01:30]} Qe6 {[%emt 0:02:38]} 36. Qf3 {[%emt 0:00:29]} Rg5 {[%emt 0:00:53]} 37. g4 {[%emt 0:00:20]} 1-0

[Event "Summer Prague Open-A 2024"]
[Site "Prague"]
[Date "2024.08.06"]
[Round "6.26"]
[White "Flajsman, Pavel"]
[Black "Halafov, Ilgar"]
[Result "0-1"]
[Annotator "RC"]
[ECO "B11"]
[WhiteElo "2188"]
[BlackElo "1975"]
[PlyCount "112"]
[EventDate "2024.08.02"]
[EventType "swiss"]
[EventCountry "CZE"]
[SourceTitle "playchess.com"]
[Source "ChessBase"]
[SourceQuality "1"]
[TimeControl "40/5400+30:1800+30"]

1. e4 {[%emt 0:00:05]} c6 {[%emt 0:00:07]} 2. Nf3 {[%emt 0:00:07]} d5 {[%emt 0:00:09]} 3. Nc3 {[%emt 0:00:06]} Bg4 {[%emt 0:00:15]} 4. d4 {[%emt 0:00:19]} dxe4 {[%emt 0:01:26]} 5. Nxe4 {[%emt 0:00:04]} Nf6 {[%emt 0:01:19]} 6. Nxf6+ {[%emt 0:00:58]} exf6 {[%emt 0:00:41]} 7. Be3 {[%emt 0:00:49]} Bd6 {[%emt 0:01:04]} 8. h3 {[%emt 0:04:44]} Be6 {[%emt 0:04:14]} 9. Bd3 {[%emt 0:01:21]} Nd7 {[%emt 0:00:37]} 10. O-O {[%emt 0:01:51]} O-O {[%emt 0:11:34]} 11. c4 {[%emt 0:01:16]} Bc7 {[%emt 0:07:31]} 12. Qc2 {[%emt 0:05:46]} h6 {[%emt 0:06:12]} 13. Rfd1 {[%emt 0:12:47]} Nb6 {[%emt 0:01:29]} 14. d5 {[%emt 0:20:01]} cxd5 {[%emt 0:02:13]} 15. Bxb6 {[%emt 0:00:24]} Bxb6 {[%emt 0:00:46]} 16. cxd5 {[%emt 0:00:04]} Bd7 {[%emt 0:04:14]} 17. Nd2 {[%emt 0:10:01]} Rc8 {[%emt 0:04:01]} 18. Qb3 {[%emt 0:00:15]} Qc7 {[%emt 0:00:52]} 19. Qb4 {[%emt 0:17:09]} Rfd8 {[%emt 0:08:09]} 20. Qe4 {[%emt 0:02:22]} f5 {[%emt 0:12:42]} 21. Qf3 {[%emt 0:00:15]} g6 {[%emt 0:00:41]} 22. g4 {[%emt 0:08:14]} fxg4 {[%emt 0:03:49]} 23. hxg4 {[%emt 0:00:01]} Bd4 {[%emt 0:05:43]} 24. Ne4 {[%emt 0:01:31]} Qe5 {[%emt 0:01:25]} 25. Re1 {[%emt 0:03:46]} Re8 {[%emt 0:07:04]} 26. Re2 {[%emt 0:01:58]} Qg7 {[%emt 0:03:59]} 27. Nd6 {[%emt 0:03:55]} Rxe2 {[%emt 0:00:33]} 28. Qxe2 {[%emt 0:00:03]} Rb8 {[%emt 0:00:59]} 29. Kg2 {[%emt 0:02:36]} Qf6 {[%emt 0:01:25]} 30. Nb5 {[%emt 0:02:02]} Bb6 {[%emt 0:01:28]} 31. Nc3 {[%emt 0:00:36]} Qf4 {[%emt 0:01:21]} 32. Qf3 {[%emt 0:00:22]} Qxg4+ {[%emt 0:00:42]} 33. Qxg4 {[%emt 0:00:01]} Bxg4 {[%emt 0:00:13]} 34. Re1 {[%emt 0:00:44]} Kf8 {[%emt 0:00:51]} 35. Bb5 {[%emt 0:00:55]} Rd8 {[%emt 0:00:30]} 36. Kg3 {[%emt 0:00:28]} Bf5 {[%emt 0:00:46]} 37. Bc4 {[%emt 0:00:29]} h5 {[%emt 0:01:01]} 38. Rd1 {[%emt 0:00:33]} h4+ {[%emt 0:00:46]} 39. Kf3 {[%emt 0:00:14]} Ke7 {[%emt 0:01:10]} 40. Re1+ {[%emt 0:00:31]} Kf6 {[%emt 0:01:18]} 41. Ne4+ {[%emt 0:05:10]} Kg7 {[%emt 0:01:47]} 42. Ng5 {[%emt 0:01:29]} Rd7 {[%emt 0:00:42]} 43. Re8 {[%emt 0:13:46]} Bd4 {[%emt 0:07:54]} 44. b3 {[%emt 0:06:41]} Bb6 {[%emt 0:04:41]} 45. a4 {[%emt 0:00:43]} a6 {[%emt 0:00:12]} 46. Kg2 {[%emt 0:01:12]} Bd8 {[%emt 0:04:17]} 47. Ne6+ {[%emt 0:00:57]} fxe6 {[%emt 0:02:57]} 48. dxe6 {[%emt 0:00:01]} h3+ {[%emt 0:00:42]} 49. Kg3 {[%emt 0:01:05]} Bh4+ {[%emt 0:06:10]} 50. Kxh4 {[%emt 0:01:16]} h2 {[%emt 0:00:08]} 51. Rg8+ {[%emt 0:01:25]} Kf6 {[%emt 0:00:42]} 52. Rf8+ {[%emt 0:00:45]} Ke5 {[%emt 0:01:03]} 53. Rxf5+ {[%emt 0:02:16]} gxf5 {[%emt 0:00:11]} 54. exd7 {[%emt 0:00:04]} h1=Q+ {[%emt 0:00:20]} 55. Kg3 {[%emt 0:00:33]} Qg1+ {[%emt 0:01:28]} 56. Kh3 {[%emt 0:00:12]} Qd1 {[%emt 0:01:05]} 0-1

[Event "Summer Prague Open-A 2024"]
[Site "Prague"]
[Date "2024.08.06"]
[Round "6.27"]
[White "Stocek, Martin"]
[Black "Heron, Andrew"]
[Result "0-1"]
[Annotator "NA RC"]
[ECO "D96"]
[WhiteElo "2176"]
[BlackElo "1973"]
[PlyCount "98"]
[EventDate "2024.08.02"]
[EventType "swiss"]
[EventCountry "CZE"]
[SourceTitle "playchess.com"]
[Source "ChessBase"]
[SourceQuality "1"]
[TimeControl "40/5400+30:1800+30"]

1. d4 {[%emt 0:00:17]} Nf6 {[%emt 0:00:06]} 2. c4 {[%emt 0:00:12]} g6 {[%emt 0:00:10]} 3. Nc3 {[%emt 0:00:24]} d5 {[%emt 0:00:18]} 4. Nf3 {[%emt 0:00:05]} Bg7 {[%emt 0:00:11]} 5. Qb3 {[%emt 0:00:10]} c6 {[%emt 0:05:19]} 6. cxd5 {[%emt 0:00:47]} cxd5 {[%emt 0:00:15]} 7. Bg5 {[%emt 0:00:26]} e6 {[%emt 0:02:59]} 8. e3 {[%emt 0:06:34]} O-O {[%emt 0:04:11]} 9. Ne5 {[%emt 0:14:09]} h6 {[%emt 0:02:46]} 10. Bh4 {[%emt 0:01:36]} Nc6 {[%emt 0:05:05]} 11. Rc1 {[%emt 0:11:23]} Na5 {[%emt 0:05:24]} 12. Qb4 {[%emt 0:05:45]} g5 {[%emt 0:02:10]} 13. Bg3 {[%emt 0:01:59]} Nh5 {[%emt 0:01:35]} 14. Be2 {[%emt 0:28:40]} Nxg3 {[%emt 0:01:41]} 15. hxg3 {[%emt 0:00:02]} Bxe5 {[%emt 0:03:34]} 16. dxe5 {[%emt 0:00:11]} Nc6 {[%emt 0:00:57]} 17. Qg4 {[%emt 0:01:08]} Kg7 {[%emt 0:03:01]} 18. Qh5 {[%emt 0:04:18]} Rh8 {[%emt 0:00:36]} 19. f4 {[%emt 0:00:22]} Bd7 {[%emt 0:08:36]} 20. O-O {[%emt 0:08:46]} Rf8 {[%emt 0:03:39]} 21. Rcd1 {[%emt 0:02:49]} Be8 {[%emt 0:17:21]} 22. Ne4 {[%emt 0:06:09]} Qb6 {[%emt 0:07:40]} 23. Nf6 {[%emt 0:00:58]} Qxe3+ {[%emt 0:01:29]} 24. Rf2 {[%emt 0:01:14]} Qxg3 {[%emt 0:03:18]} 25. Rf3 {[%emt 0:03:43]} Qh4 {[%emt 0:00:02]} 26. Qxh4 {[%emt 0:00:33]} gxh4 {[%emt 0:00:11]} 27. Rh3 {[%emt 0:00:21]} Rh8 {[%emt 0:02:52]} 28. Rxh4 {[%emt 0:00:09]} Ne7 {[%emt 0:00:53]} 29. Rd3 {[%emt 0:00:50]} Ng6 {[%emt 0:03:16]} 30. Rg3 {[%emt 0:00:17]} Kf8 {[%emt 0:02:11]} 31. Rhg4 {[%emt 0:00:42]} Rc8 {[%emt 0:01:25]} 32. Bd3 {[%emt 0:00:48]} h5 {[%emt 0:01:04]} 33. Rg5 {[%emt 0:00:25]} Nxf4 {[%emt 0:00:41]} 34. Kh2 {[%emt 0:00:32]} Nxd3 {[%emt 0:01:34]} 35. Rxd3 {[%emt 0:00:02]} Rc2 {[%emt 0:01:44]} 36. Ra3 {[%emt 0:00:06]} a6 {[%emt 0:00:33]} 37. Rb3 {[%emt 0:00:20]} Bc6 {[%emt 0:00:25]} 38. Rb4 {[%emt 0:00:29]} h4 {[%emt 0:00:52]} 39. Kh3 {[%emt 0:00:21]} Rc1 {[%emt 0:01:24]} 40. Rb3 {[%emt 0:01:27]} Rh1+ {[%emt 0:01:39]} 41. Kg4 {[%emt 0:02:03]} Re1 {[%emt 0:03:59]} 42. a3 {[%emt 0:01:12]} Re2 {[%emt 0:01:08]} 43. Kf4 {[%emt 0:01:51]} Rf2+ {[%emt 0:01:27]} 44. Ke3 {[%emt 0:00:53]} Rxf6 {[%emt 0:05:10]} 45. exf6 {[%emt 0:03:38]} h3 {[%emt 0:00:02]} 46. gxh3 {[%emt 0:01:10]} Rxh3+ {[%emt 0:00:09]} 47. Kd4 {[%emt 0:00:11]} Rxb3 {[%emt 0:00:13]} 48. Ke5 {[%emt 0:00:07]} Rf3 {[%emt 0:01:16]} 49. Rh5 {[%emt 0:00:07]} Rf5+ {[%emt 0:00:06]} 0-1

[Event "Summer Prague Open-A 2024"]
[Site "Prague"]
[Date "2024.08.06"]
[Round "6.28"]
[White "Cichon, Bartlomiej"]
[Black "Toure, Vasanth"]
[Result "1-0"]
[Annotator "NA RC"]
[ECO "C50"]
[WhiteElo "1992"]
[BlackElo "2176"]
[PlyCount "101"]
[EventDate "2024.08.02"]
[EventType "swiss"]
[EventCountry "CZE"]
[SourceTitle "playchess.com"]
[Source "ChessBase"]
[SourceQuality "1"]
[TimeControl "40/5400+30:1800+30"]

1. e4 {[%emt 0:03:34]} e5 {[%emt 0:00:16]} 2. Nf3 {[%emt 0:00:10]} Nc6 {[%emt 0:00:07]} 3. Bc4 {[%emt 0:00:09]} Nf6 {[%emt 0:00:05]} 4. d3 {[%emt 0:00:10]} Bc5 {[%emt 0:00:05]} 5. O-O {[%emt 0:01:47]} d6 {[%emt 0:01:01]} 6. c3 {[%emt 0:00:11]} a6 {[%emt 0:01:14]} 7. Bb3 {[%emt 0:00:29]} Ba7 {[%emt 0:03:22]} 8. Nbd2 {[%emt 0:01:57]} h6 {[%emt 0:00:29]} 9. Re1 {[%emt 0:02:14]} Be6 {[%emt 0:11:42]} 10. Nf1 {[%emt 0:03:17]} Qd7 {[%emt 0:01:38]} 11. Bc2 {[%emt 0:15:13]} O-O {[%emt 0:02:38]} 12. Ng3 {[%emt 0:02:13]} d5 {[%emt 0:14:47]} 13. Qe2 {[%emt 0:03:58]} Ng4 {[%emt 0:02:08]} 14. Rf1 {[%emt 0:07:06]} b5 {[%emt 0:23:26]} 15. Nh4 {[%emt 0:05:05]} Nf6 {[%emt 0:16:21]} 16. Nhf5 {[%emt 0:09:52]} Ne7 {[%emt 0:03:08]} 17. d4 {[%emt 0:11:41]} Nxe4 {[%emt 0:05:51]} 18. Nxe7+ {[%emt 0:01:07]} Qxe7 {[%emt 0:00:02]} 19. Nxe4 {[%emt 0:01:05]} dxe4 {[%emt 0:00:35]} 20. Qxe4 {[%emt 0:00:45]} f5 {[%emt 0:00:45]} 21. Qxe5 {[%emt 0:01:00]} Qf7 {[%emt 0:00:06]} 22. Bb3 {[%emt 0:05:46]} Bxb3 {[%emt 0:03:27]} 23. axb3 {[%emt 0:00:04]} Bb6 {[%emt 0:00:06]} 24. b4 {[%emt 0:02:27]} f4 {[%emt 0:01:25]} 25. Qe4 {[%emt 0:04:28]} Qf5 {[%emt 0:07:43]} 26. Qxf5 {[%emt 0:01:15]} Rxf5 {[%emt 0:00:02]} 27. f3 {[%emt 0:03:06]} Kf7 {[%emt 0:00:31]} 28. Re1 {[%emt 0:00:49]} a5 {[%emt 0:00:55]} 29. bxa5 {[%emt 0:00:43]} Rxa5 {[%emt 0:00:01]} 30. Rxa5 {[%emt 0:00:02]} Bxa5 {[%emt 0:00:01]} 31. Re4 {[%emt 0:02:36]} g5 {[%emt 0:00:14]} 32. Kf2 {[%emt 0:04:35]} c5 {[%emt 0:01:30]} 33. Ke2 {[%emt 0:01:48]} Rd5 {[%emt 0:00:47]} 34. dxc5 {[%emt 0:01:41]} Rxc5 {[%emt 0:00:31]} 35. b4 {[%emt 0:01:46]} Rxc3 {[%emt 0:00:27]} 36. Bd2 {[%emt 0:00:21]} Bxb4 {[%emt 0:00:06]} 37. Rxb4 {[%emt 0:00:15]} Rc5 {[%emt 0:00:25]} 38. Re4 {[%emt 0:01:35]} Rd5 {[%emt 0:00:14]} 39. Bc3 {[%emt 0:01:19]} Rc5 {[%emt 0:00:59]} 40. Kd3 {[%emt 0:00:42]} Rc7 {[%emt 0:00:16]} 41. Kc2 {[%emt 0:31:29]} Kg6 {[%emt 0:01:22]} 42. Kb3 {[%emt 0:00:00]} Rc6 {[%emt 0:00:24]} 43. Re5 {[%emt 0:00:00]} Rb6 {[%emt 0:00:17]} 44. Kb4 {[%emt 0:00:00]} Ra6 {[%emt 0:00:07]} 45. Rd5 {[%emt 0:00:00]} Ra7 {[%emt 0:02:48]} 46. Kxb5 {[%emt 0:00:00]} Rb7+ {[%emt 0:00:01]} 47. Kc4 {[%emt 0:00:00]} Rb1 {[%emt 0:00:07]} 48. Rd6+ {[%emt 0:00:00]} Kf7 {[%emt 0:02:00]} 49. Rf6+ {[%emt 0:00:00]} Ke8 {[%emt 0:00:01]} 50. Rxh6 {[%emt 0:00:00]} Rg1 {[%emt 0:00:07]} 51. Re6+ {[%emt 0:00:00]} 1-0